fUSD/lending_fUSD_20260322
["ID","MTS","AMOUNT","RATE_DAILY","PERIOD"]
[408747363,1774189842451,-426.296392,0.00012895,2]
[408747364,1774189842461,-178.483927,0.00012895,2]
[408747365,1774189842470,-510.633158,0.000129,2]
[408747366,1774189842480,-151.0,0.000129,2]
[408747367,1774189842490,-938.55,0.00012976,2]
[408747368,1774189842499,-250.0,0.00013,2]
[408747369,1774189842511,-5642.82862896,0.00013,2]
[408747370,1774189842521,-3171.13653461,0.0001305,2]
[408747371,1774189842531,-160.0,0.000131,2]
[408747372,1774189842542,-433.0,0.00013131,2]
[408747373,1774189842551,-38822.3523141,0.00013163,2]
[408747374,1774189842562,-1000.0,0.00013199,2]
[408747375,1774189842571,-587.0,0.00013226,2]
[408747376,1774189842582,-938.55,0.0001325,2]
[408747377,1774189842591,-200.0,0.0001325,2]
[408747378,1774189842601,-2351.0,0.00013252,2]
[408747379,1774189842610,-1008.47953738,0.00013264,2]
[408747380,1774189842620,-1733.94746042,0.00013264,2]
[408747381,1774189842629,-156.022,0.00013276,2]
[408747382,1774189842639,-6699.29327098,0.00013284,2]
[408747383,1774189842648,-402.347392,0.00013424,2]
[408747384,1774189842658,-3240.0,0.00013425,2]
[408747385,1774189842667,-223.104909,0.00013425,2]
[408747386,1774189842676,-333.06428993,0.00013437,2]
[408747387,1774189842685,-1000.0,0.00013455,2]
[408747388,1774189842694,-838.98,0.000135,2]
[408747389,1774189842704,-734.11,0.000135,7]
[408747390,1774189842713,-524.37,0.000135,14]
[408747391,1774189842723,-1000.0,0.000135,2]
[408747392,1774189842733,-938.55,0.00013524,2]
[408747393,1774189842742,-2000.0,0.0001356,2]
[408747394,1774189842752,-10000.0,0.00013598,2]
[408747395,1774189842761,-1600.0,0.00013698,2]
[408747396,1774189842771,-2222.8763441,0.00013698,2]
[408747397,1774189842780,-3162.80581936,0.00013698,2]
[408747398,1774189842790,-2671.13458251,0.00013698,2]
[408747399,1774189842800,-1046.8329771,0.00013698,2]
[408747400,1774189842809,-500.0,0.00013698,2]
[408747401,1774189842818,-500.0,0.00013698,2]
[408747402,1774189842828,-500.0,0.00013698,2]
[408747403,1774189842837,-500.0,0.00013698,2]
[408747404,1774189842846,-500.0,0.00013698,2]
[408747405,1774189842856,-500.0,0.00013698,2]
[408747406,1774189842865,-500.0,0.00013698,2]
[408747407,1774189842875,-500.0,0.00013698,2]
[408747408,1774189842885,-500.0,0.00013698,2]
[408747409,1774189842894,-500.0,0.00013698,2]
[408747410,1774189842904,-500.0,0.00013698,2]
[408747411,1774189842914,-500.0,0.00013698,2]
[408747412,1774189842924,-500.0,0.00013698,2]
[408747413,1774189842934,-500.0,0.00013698,2]
[408747414,1774189842944,-500.0,0.00013698,2]
[408747415,1774189842953,-500.0,0.00013698,2]
[408747416,1774189842963,-500.0,0.00013698,2]
[408747417,1774189842972,-500.0,0.00013698,2]
[408747418,1774189842982,-500.0,0.00013698,2]
[408747419,1774189842992,-500.0,0.00013698,2]
[408747420,1774189843002,-500.0,0.00013698,2]
[408747421,1774189843011,-500.0,0.00013698,2]
[408747422,1774189843020,-500.0,0.00013698,2]
[408747423,1774189843030,-500.0,0.00013698,2]
[408747424,1774189843039,-500.0,0.00013698,2]
[408747425,1774189843048,-500.0,0.00013698,2]
[408747426,1774189843057,-500.0,0.00013698,2]
[408747427,1774189843067,-500.0,0.00013698,2]
[408747428,1774189843076,-500.0,0.00013698,2]
[408747429,1774189843086,-500.0,0.00013698,2]
[408747430,1774189843095,-500.0,0.00013698,2]
[408747431,1774189843104,-500.0,0.00013698,2]
[408747432,1774189843114,-500.0,0.00013698,2]
[408747433,1774189843124,-500.0,0.00013698,2]
[408747434,1774189843133,-500.0,0.00013698,2]
[408747435,1774189843142,-500.0,0.00013698,2]
[408747436,1774189843151,-500.0,0.00013698,2]
[408747437,1774189843160,-500.0,0.00013698,2]
[408747438,1774189843169,-500.0,0.00013698,2]
[408747439,1774189843179,-500.0,0.00013698,2]
[408747440,1774189843188,-500.0,0.00013698,2]
[408747441,1774189843197,-500.0,0.00013698,2]
[408747442,1774189843206,-500.0,0.00013698,2]
[408747443,1774189843215,-526.80863898,0.00013698,2]
[408747444,1774189843224,-522.93,0.00013698,2]
[408747445,1774189843233,-522.93,0.00013698,2]
[408747446,1774189843243,-522.93,0.00013698,2]
[408747447,1774189843252,-522.93,0.00013698,2]
[408747448,1774189843263,-522.93,0.00013698,2]
[408747449,1774189843273,-522.93,0.00013698,2]
[408747450,1774189843282,-522.93,0.00013698,2]
[408747451,1774189843297,-522.93,0.00013698,2]
[408747452,1774189843307,-522.93,0.00013698,2]
[408747453,1774189843316,-522.93,0.00013698,2]
[408747454,1774189843325,-500.0,0.00013698,2]
[408747455,1774189843336,-500.0,0.00013698,2]
[408747456,1774189843345,-500.0,0.00013698,2]
[408747457,1774189843355,-500.0,0.00013698,2]
[408747458,1774189843365,-500.0,0.00013698,2]
[408747459,1774189843375,-500.0,0.00013698,2]
[408747460,1774189843385,-500.0,0.00013698,2]
[408747461,1774189843395,-500.0,0.00013698,2]
[408747462,1774189843404,-500.0,0.00013698,2]
[408747463,1774189843413,-500.0,0.00013698,2]
[408747465,1774189843423,-521.60337023,0.00013698,2]
[408747466,1774189843432,-500.0,0.00013698,2]
[408747467,1774189843441,-500.0,0.00013698,2]
[408747468,1774189843451,-500.0,0.00013698,2]
[408747469,1774189843460,-500.0,0.00013698,2]
[408747470,1774189843470,-500.0,0.00013698,2]
[408747471,1774189843479,-303.97290395,0.00013698,2]
[408747472,1774189843489,-500.0,0.00013698,2]
[408747473,1774189843498,-506.62310437,0.00013698,2]
[408747474,1774189843508,-500.0,0.00013698,2]
[408747475,1774189843517,-500.0,0.00013698,2]
[408747476,1774189843526,-500.0,0.00013698,2]
[408747477,1774189843536,-500.0,0.00013698,2]
[408747478,1774189843545,-500.0,0.00013698,2]
[408747479,1774189843555,-500.0,0.00013698,2]
[408747480,1774189843563,-500.0,0.00013698,2]
[408747481,1774189843573,-500.0,0.00013698,2]
[408747482,1774189843582,-500.0,0.00013698,2]
[408747483,1774189843592,-180.31740041,0.00013698,2]
[408747484,1774189843601,-2227.58,0.00013698,2]
[408747485,1774189843610,-2227.58,0.00013698,2]
[408747486,1774189843619,-2227.58,0.00013698,2]
[408747487,1774189843628,-2227.58,0.00013698,2]
[408747488,1774189843637,-2227.58,0.00013698,2]
[408747489,1774189843646,-2227.58,0.00013698,2]
[408747490,1774189843656,-2227.58,0.00013698,2]
[408747491,1774189843665,-2227.58,0.00013698,2]
[408747492,1774189843674,-2227.58,0.00013698,2]
[408747493,1774189843684,-2227.58,0.00013698,2]
[408747494,1774189843693,-2227.58,0.00013698,2]
[408747495,1774189843702,-2227.58,0.00013698,2]
[408747496,1774189844086,-2227.58,0.00013698,2]
[408747497,1774189844096,-592.228816,0.00013698,2]
[408747498,1774189844105,-500.0,0.00013698,2]
[408747499,1774189844115,-500.0,0.00013698,2]
[408747500,1774189844124,-500.0,0.00013698,2]
[408747501,1774189844133,-500.0,0.00013698,2]
[408747502,1774189844143,-500.0,0.00013698,2]
[408747503,1774189844153,-500.0,0.00013698,2]
[408747504,1774189844162,-500.0,0.00013698,2]
[408747505,1774189844172,-500.0,0.00013698,2]
[408747506,1774189844181,-500.0,0.00013698,2]
[408747507,1774189844191,-500.0,0.00013698,2]
[408747508,1774189844200,-500.0,0.00013698,2]
[408747509,1774189844210,-500.0,0.00013698,2]
[408747510,1774189844219,-500.0,0.00013698,2]
[408747511,1774189844228,-500.0,0.00013698,2]
[408747512,1774189844238,-500.0,0.00013698,2]
[408747513,1774189844247,-500.0,0.00013698,2]
[408747514,1774189844257,-500.0,0.00013698,2]
[408747515,1774189844267,-500.0,0.00013698,2]
[408747516,1774189844277,-500.0,0.00013698,2]
[408747517,1774189844286,-500.0,0.00013698,2]
[408747518,1774189844297,-500.0,0.00013698,2]
[408747519,1774189844307,-473.27396647,0.00013698,2]
[408747520,1774189844317,-500.0,0.00013698,2]
[408747521,1774189844327,-500.0,0.00013698,2]
[408747522,1774189844338,-500.0,0.00013698,2]
[408747523,1774189844347,-500.0,0.00013698,2]
[408747524,1774189844357,-500.0,0.00013698,2]
[408747525,1774189844369,-500.0,0.00013698,2]
[408747526,1774189844379,-500.0,0.00013698,2]
[408747527,1774189844388,-500.0,0.00013698,2]
[408747528,1774189844398,-500.0,0.00013698,2]
[408747529,1774189844407,-500.0,0.00013698,2]
[408747530,1774189844417,-500.0,0.00013698,2]
[408747531,1774189844427,-500.0,0.00013698,2]
[408747532,1774189844437,-500.0,0.00013698,2]
[408747533,1774189844447,-500.0,0.00013698,2]
[408747534,1774189844457,-500.0,0.00013698,2]
[408747535,1774189844467,-500.0,0.00013698,2]
[408747536,1774189844476,-500.0,0.00013698,2]
[408747537,1774189844486,-500.0,0.00013698,2]
[408747538,1774189844496,-507.02157658,0.00013698,2]
[408747539,1774189844506,-500.0,0.00013698,2]
[408747540,1774189844515,-500.0,0.00013698,2]
[408747541,1774189844524,-500.0,0.00013698,2]
[408747542,1774189844534,-500.0,0.00013698,2]
[408747543,1774189844544,-500.0,0.00013698,2]
[408747544,1774189844554,-514.93719248,0.00013698,2]
[408747545,1774189844563,-500.0,0.00013698,2]
[408747546,1774189844572,-500.0,0.00013698,2]
[408747547,1774189844581,-500.0,0.00013698,2]
[408747548,1774189844592,-500.0,0.00013698,2]
[408747549,1774189844601,-207.8534478,0.00013698,2]
[408747550,1774189844611,-500.0,0.00013698,2]
[408747551,1774189844620,-500.0,0.00013698,2]
[408747552,1774189844630,-500.0,0.00013698,2]
[408747553,1774189844639,-500.0,0.00013698,2]
[408747554,1774189844649,-607.96438655,0.00013698,2]
[408747555,1774189844659,-500.0,0.00013698,2]
[408747556,1774189844668,-500.0,0.00013698,2]
[408747557,1774189844678,-511.33595066,0.00013698,2]
[408747558,1774189844687,-544.94328698,0.00013698,2]
[408747559,1774189844697,-521.23273696,0.00013698,2]
[408747560,1774189844707,-523.44,0.00013698,2]
[408747561,1774189844716,-523.44,0.00013698,2]
[408747562,1774189844728,-523.44,0.00013698,2]
[408747563,1774189844737,-523.44,0.00013698,2]
[408747564,1774189844747,-523.44,0.00013698,2]
[408747565,1774189844756,-523.44,0.00013698,2]
[408747566,1774189844765,-523.44,0.00013698,2]
[408747567,1774189844775,-523.44,0.00013698,2]
[408747568,1774189844784,-523.44,0.00013698,2]
[408747569,1774189844793,-523.44,0.00013698,2]
[408747570,1774189844803,-500.0,0.00013698,2]
[408747571,1774189844812,-500.0,0.00013698,2]
[408747572,1774189844821,-500.0,0.00013698,2]
[408747573,1774189844831,-500.0,0.00013698,2]
[408747574,1774189844840,-500.0,0.00013698,2]
[408747575,1774189844849,-500.0,0.00013698,2]
[408747576,1774189844859,-500.0,0.00013698,2]
[408747577,1774189844868,-411.8232167,0.00013698,2]
[408747578,1774189844877,-150.0,0.00013699,2]
[408747579,1774189844886,-150.0,0.00013699,2]
[408747580,1774189844896,-500.0,0.00013699,2]
[408747581,1774189844905,-500.0,0.00013699,2]
[408747582,1774189844914,-500.0,0.00013699,2]
[408747583,1774189844923,-500.43058459,0.00013699,2]
[408747584,1774189844932,-500.74920901,0.00013699,2]
[408747585,1774189844941,-500.4848322,0.00013699,2]
[408747586,1774189844950,-500.0,0.00013699,2]
[408747587,1774189844959,-500.0,0.00013699,2]
[408747588,1774189844969,-500.0,0.00013699,2]
[408747589,1774189844978,-347.47666717,0.00013699,2]
[408747590,1774189844987,-500.0,0.00013699,2]
[408747591,1774189844997,-500.0,0.00013699,2]
[408747592,1774189845007,-500.0,0.00013699,2]
[408747593,1774189845016,-500.70382414,0.00013699,2]
[408747594,1774189845025,-500.0,0.00013699,2]
[408747595,1774189845034,-500.0,0.00013699,2]
[408747596,1774189845043,-500.0,0.00013699,2]
[408747597,1774189845052,-500.0,0.00013699,2]
[408747598,1774189845062,-500.0,0.00013699,2]
[408747599,1774189845072,-500.55967201,0.00013699,2]
[408747600,1774189845081,-500.0,0.00013699,2]
[408747601,1774189845090,-500.0,0.00013699,2]
[408747602,1774189845099,-500.0,0.00013699,2]
[408747603,1774189845108,-500.0,0.00013699,2]
[408747604,1774189845118,-500.0,0.00013699,2]
[408747605,1774189845127,-390.12270077,0.00013699,2]
[408747606,1774189845135,-500.44177829,0.00013699,2]
[408747607,1774189845145,-500.0,0.00013699,2]
[408747608,1774189845154,-500.0,0.00013699,2]
[408747609,1774189845163,-152.43188274,0.00013699,2]
[408747610,1774189845173,-1291.84,0.000137,2]
[408747611,1774189845182,-1685.88,0.000137,2]
[408747612,1774189845191,-1912.75,0.000137,2]
[408747613,1774189845201,-901.36,0.000137,2]
[408747614,1774189845211,-2616.64,0.000137,2]
[408747615,1774189845220,-1885.27,0.000137,2]
[408747616,1774189845229,-38822.3523141,0.0001371,2]
[408747617,1774189845239,-154.0,0.0001379,3]
[408747618,1774189845249,-151.0,0.00013797,2]
[408747619,1774189845258,-938.55,0.00013798,2]
[408747620,1774189845267,-200.0,0.00013798,2]
[408747621,1774189845277,-157.9119,0.000138,2]
[408747622,1774189845288,-2638.31779897,0.00013892,2]
[408747623,1774189845297,-773.59617072,0.00013892,2]
[408747624,1774189845307,-195.30644904,0.00013892,2]
[408747625,1774189845317,-151.0,0.000139,2]
[408747626,1774189845327,-150.0,0.00013973,2]
[408747627,1774189845336,-129426.70217363,0.0001399,2]
[408747628,1774189845345,-1500.0,0.00013992,2]
[408747629,1774189845354,-500.0,0.00014,2]
[408747630,1774189845367,-938.59,0.00014072,2]
[408747631,1774189845376,-500.0,0.00014082,2]
[408747632,1774189845386,-154.47,0.000141,2]
[408747633,1774189845396,-60000.0,0.00014115,2]
[408747634,1774189845406,-150.0,0.00014127,2]
[408747635,1774189845416,-500.0,0.00014219,2]
[408747636,1774189845425,-150.0,0.00014247,2]
[408747637,1774189845434,-1000.0,0.00014247,2]
[408747638,1774189845443,-1000.0,0.00014247,2]
[408747639,1774189845452,-1000.0,0.00014247,2]
[408747640,1774189845462,-998.52273734,0.00014247,2]
[408747641,1774189845471,-1000.0,0.00014247,2]
[408747642,1774189845480,-1000.0,0.00014247,2]
[408747643,1774189845489,-1000.0,0.00014247,2]
[408747644,1774189845499,-502.54227332,0.00014247,2]
[408747645,1774189845508,-1000.0,0.00014247,2]
[408747646,1774189845517,-1000.0,0.00014247,2]
[408747647,1774189845526,-507.92423982,0.00014247,2]
[408747648,1774189845535,-1000.0,0.00014247,2]
[408747649,1774189845545,-500.67270798,0.00014247,2]
[408747650,1774189845554,-1000.0,0.00014247,2]
[408747651,1774189845564,-538.91632234,0.00014247,2]
[408747652,1774189845573,-803.0796662,0.00014247,2]
[408747653,1774189845583,-505.99225948,0.00014247,2]
[408747654,1774189845592,-38822.3523141,0.00014258,2]
[408747655,1774189845601,-200.0,0.00014346,2]
[408747656,1774189845611,-500.0,0.00014357,2]
[408747657,1774189845622,-500.0,0.00014357,2]
[408747658,1774189845632,-736.0,0.0001438,2]
[408747659,1774189845643,-150.0,0.00014409,2]
[408747660,1774189845653,-6699.29327098,0.00014447,2]
[408747661,1774189845663,-160.0,0.00014452,2]
[408747662,1774189845673,-160.0,0.00014452,2]
[408747663,1774189845682,-979.16666667,0.00014452,2]
[408747664,1774189845691,-160.0,0.00014452,2]
[408747665,1774189845701,-174.18,0.00014462,2]
[408747666,1774189845710,-250.0,0.00014472,2]
[408747667,1774189845721,-151.0,0.000145,2]
[408747668,1774189845731,-823.0,0.00014535,2]
[408747669,1774189845741,-3292.0,0.00014577,2]
[408747670,1774189845751,-150.0,0.00014581,2]
[408747671,1774189845761,-150.0,0.00014586,2]
[408747672,1774189845771,-102091.0,0.000146,2]
[408747673,1774189845781,-217.0,0.00014633,2]
[408747674,1774189845791,-217.0,0.00014657,2]
[408747675,1774189845801,-217.0,0.00014672,2]
[408747676,1774189845811,-500.0,0.0001471,2]
[408747677,1774189845820,-155.0,0.00014736,3]
[408747678,1774189845831,-217.0,0.00014773,2]
[408747679,1774189845843,-217.0,0.00014792,2]
[408747680,1774189845853,-2227.58,0.00014794,2]
[408747681,1774189845863,-500.0,0.00014794,2]
[408747682,1774189845874,-500.0,0.00014794,2]
[408747683,1774189845885,-1500.0,0.00014795,2]
[408747684,1774189845895,-1158.78645597,0.00014795,2]
[408747685,1774189845904,-1500.0,0.00014795,2]
[408747686,1774189845914,-1500.0,0.00014795,2]
[408747687,1774189845923,-1500.0,0.00014795,2]
[408747688,1774189845933,-419.75064279,0.00014795,2]
[408747689,1774189845942,-722.68518983,0.00014795,2]
[408747690,1774189845951,-713.64434561,0.00014795,2]
[408747691,1774189845961,-151.0,0.00014803,2]
[408747692,1774189845970,-151.0,0.00014803,2]
[408747693,1774189845979,-151.0,0.00014803,2]
[408747694,1774189845989,-38822.3523141,0.00014805,2]
[408747695,1774189845999,-150.0,0.00014833,2]
[408747696,1774189846009,-217.0,0.00014842,2]
[408747697,1774189846019,-150.0,0.00014872,2]
[408747698,1774189846028,-150.0,0.00014877,2]
[408747699,1774189846037,-200.0,0.00014894,2]
[408747700,1774189846047,-335.73,0.000149,2]
[408747701,1774189846056,-1600.0,0.00014943,2]
[408747702,1774189846066,-1885.27,0.00015,2]
[408747703,1774189846075,-200.0,0.00015,2]
[408747704,1774189846085,-300.0,0.00015,2]
[408747705,1774189846095,-200.0,0.00015,2]
[408747706,1774189846104,-2063.71846388,0.00015,2]
[408747707,1774189846114,-2428.27013508,0.00015,14]
[408747708,1774189846123,-8034.12425603,0.00015,2]
[408747709,1774189846133,-217.0,0.00015025,2]
[408747710,1774189846143,-168.0,0.00015048,2]
[408747711,1774189846152,-191.847634,0.0001507,2]
[408747712,1774189846163,-217.0,0.00015087,2]
[408747713,1774189846172,-162.023,0.000151,2]
[408747714,1774189846182,-901.36,0.000151,2]
[408747715,1774189846192,-2616.64,0.000151,2]
[408747716,1774189846201,-168.0,0.00015112,2]
[408747717,1774189846210,-168.0,0.00015177,2]
[408747718,1774189846219,-217.0,0.00015179,2]
[408747719,1774189846229,-174.18,0.00015226,2]
[408747720,1774189846239,-2000.0,0.00015255,2]
[408747721,1774189846250,-150.0,0.00015257,2]
[408747722,1774189846259,-151.0,0.000153,3]
[408747723,1774189846269,-1291.84,0.000153,2]
[408747724,1774189846279,-1685.88,0.000153,2]
[408747725,1774189846292,-1912.75,0.000153,2]
[408747726,1774189846302,-5533.0,0.000153,3]
[408747727,1774189846312,-179.47460291,0.00015309,7]
[408747728,1774189846322,-150.0,0.0001531,2]
[408747729,1774189846331,-150.0,0.00015315,2]
[408747730,1774189846341,-168.0,0.00015337,2]
[408747731,1774189846350,-168.0,0.0001534,2]
[408747732,1774189846361,-1244.0069204,0.00015342,2]
[408747733,1774189846371,-573.03260881,0.00015342,2]
[408747734,1774189846380,-1000.0,0.00015342,2]
[408747736,1774189846390,-168.0,0.00015345,2]
[408747737,1774189846399,-168.0,0.0001535,2]
[408747751,1774189846564,-151.0,0.00015352,2]
[408747753,1774189846574,-151.0,0.00015352,2]
[408747755,1774189846583,-151.0,0.00015352,2]
[408747757,1774189846592,-38822.3523141,0.00015353,2]
[408747759,1774189846602,-150.49957673,0.00015357,2]
[408747761,1774189846611,-350.0,0.00015365,2]
[408747763,1774189846620,-168.0,0.00015372,2]
[408747765,1774189846629,-188.02553443,0.00015397,2]
[408747767,1774189846638,-500.0,0.00015419,3]
[408747769,1774189846648,-217.73791025,0.00015442,2]
[408747771,1774189846657,-150.0,0.00015449,2]
[408747773,1774189846667,-5551.0,0.0001547,2]
[408747775,1774189846676,-155.0,0.00015488,2]
[408747777,1774189846685,-2001.41322195,0.000155,3]
[408747779,1774189846695,-4000.0,0.00015507,2]
[408747781,1774189846703,-150.0,0.00015526,2]
[408747783,1774189846712,-350.0,0.00015552,2]
[408747785,1774189846721,-6699.29327098,0.00015611,2]
[408747787,1774189846730,-350.0,0.00015655,2]
[408747789,1774189846740,-350.0,0.00015657,2]
[408747791,1774189846749,-2900.0,0.000157,5]
[408747793,1774189846759,-150.0,0.00015732,2]
[408747794,1774189846767,-150.0,0.00015752,2]
[408747797,1774189846777,-500.0,0.00015753,2]
[408747798,1774189846786,-350.0,0.00015755,2]
[408747800,1774189846798,-150.0,0.00015758,2]
[408747803,1774189846807,-208.810874,0.00015767,2]
[408747804,1774189846816,-150.0,0.000158,2]
[408747806,1774189846830,-500.0,0.000158,5]
[408747809,1774189846839,-150.0,0.00015822,2]
[408747811,1774189846848,-2794.10845585,0.0001584,2]
[408747812,1774189846858,-150.0,0.00015848,2]
[408747814,1774189846867,-150.0,0.00015852,2]
[408747817,1774189846877,-150.0,0.00015868,2]
[408747819,1774189846886,-150.0,0.0001587,2]
[408747821,1774189846895,-500.0,0.00015872,2]
[408747822,1774189846904,-150.0,0.00015874,2]
[408747825,1774189846914,-150.0,0.00015879,2]
[408747827,1774189846923,-150.0,0.00015885,2]
[408747829,1774189846933,-150.0,0.00015893,2]
[408747830,1774189846942,-4000.0,0.00015895,2]
[408747832,1774189846951,-500.0,0.00015899,2]
[408747834,1774189846960,-500.0,0.00015899,2]
[408747836,1774189846969,-500.0,0.00015899,2]
[408747838,1774189846978,-522.93,0.00015899,2]
[408747840,1774189846987,-500.0,0.00015899,2]
[408747842,1774189846997,-2227.58,0.00015899,2]
[408747844,1774189847006,-500.0,0.00015899,2]
[408747846,1774189847015,-500.0,0.00015899,2]
[408747848,1774189847025,-523.44,0.00015899,2]
[408747850,1774189847034,-500.0,0.000159,5]
[408747852,1774189847043,-38822.3523141,0.000159,2]
[408747854,1774189847052,-31720.00690847,0.000159,2]
[408747856,1774189847062,-333.06428993,0.000159,2]
[408747858,1774189847071,-5533.0,0.000159,5]
[408747860,1774189847080,-198.0,0.00015906,2]
[408747862,1774189847090,-216.0,0.0001591,2]
[408747864,1774189847099,-150.0,0.0001592,2]
[408747866,1774189847108,-254.72603243,0.00015931,2]
[408747868,1774189847117,-150.0,0.00015935,2]
[408747870,1774189847126,-500.0,0.00015945,2]
[408747872,1774189847135,-500.0,0.00015945,2]
[408747874,1774189847145,-400.0,0.00015945,2]
[408747876,1774189847154,-400.0,0.00015945,2]
[408747878,1774189847163,-400.0,0.00015945,2]
[408747880,1774189847172,-400.0,0.00015945,2]
[408747882,1774189847181,-303.3462059,0.00015945,2]
[408747884,1774189847190,-500.0,0.00015945,2]
[408747886,1774189847199,-500.0,0.00015959,2]
[408747888,1774189847208,-500.0,0.00015959,2]
[408747890,1774189847217,-3625.57747866,0.0001596,2]
[408747892,1774189847227,-150.0,0.00015961,2]
[408747894,1774189847236,-500.0,0.00015973,2]
[408747896,1774189847245,-500.0,0.00015973,2]
[408747898,1774189847254,-150.0,0.00015973,2]
[408747900,1774189847263,-1152.0,0.00015973,2]
[408747902,1774189847272,-247.07265907,0.0001599,2]
[408747904,1774189847282,-247.07265907,0.0001599,2]
[408747906,1774189847295,-215.323875,0.00015997,2]
[408747908,1774189847304,-215.323875,0.00015997,2]
[408747910,1774189847314,-151.0,0.00015997,2]
[408747912,1774189847323,-151.0,0.00015997,2]
[408747914,1774189847334,-151.0,0.00015997,2]
[408747916,1774189847343,-150.0,0.00015997,2]
[408747919,1774189847357,-1955.61079819,0.00015999,2]
[408747921,1774189847366,-666.0,0.00015999,2]
[408747923,1774189847375,-666.0,0.00015999,2]
[408747925,1774189847384,-500.0,0.00015999,2]
[408747927,1774189847393,-500.0,0.00015999,2]
[408747929,1774189847402,-500.0,0.00015999,2]
[408747931,1774189847411,-500.0,0.00015999,2]
[408747933,1774189847420,-500.0,0.00015999,2]
[408747935,1774189847430,-500.0,0.00015999,2]
[408747937,1774189847439,-500.0,0.00015999,2]
[408747939,1774189847448,-500.0,0.00015999,2]
[408747941,1774189847456,-500.0,0.00015999,2]
[408747943,1774189847465,-500.0,0.00015999,2]
[408747945,1774189847474,-500.0,0.00015999,2]
[408747947,1774189847486,-500.0,0.00015999,2]
[408747949,1774189847495,-500.0,0.00015999,2]
[408747951,1774189847503,-500.0,0.00015999,2]
[408747953,1774189847512,-188.33807492,0.00015999,2]
[408747955,1774189847521,-500.0,0.00015999,2]
[408747957,1774189847532,-500.0,0.00015999,2]
[408747959,1774189847543,-500.0,0.00015999,2]
[408747961,1774189847551,-500.0,0.00015999,2]
[408747963,1774189847560,-500.0,0.00015999,2]
[408747965,1774189847569,-500.0,0.00015999,2]
[408747967,1774189847578,-500.0,0.00015999,2]
[408747969,1774189847587,-500.0,0.00015999,2]
[408747971,1774189847597,-390.47678169,0.00015999,2]
[408747973,1774189847605,-500.0,0.00015999,2]
[408747975,1774189847614,-500.0,0.00015999,2]
[408747977,1774189847623,-500.0,0.00015999,2]
[408747979,1774189847633,-500.0,0.00015999,2]
[408747981,1774189847642,-500.0,0.00015999,2]
[408747983,1774189847650,-437.36106336,0.00015999,2]
[408747985,1774189847659,-500.0,0.00015999,2]
[408747987,1774189847668,-500.0,0.00015999,2]
[408747989,1774189847678,-500.0,0.00015999,2]
[408747991,1774189847687,-500.0,0.00015999,2]
[408747993,1774189847696,-500.0,0.00015999,2]
[408747995,1774189847705,-500.0,0.00015999,2]
[408747997,1774189847715,-500.0,0.00015999,2]
[408747999,1774189847723,-634.38,0.00015999,2]
[408748001,1774189847732,-381.45780892,0.00015999,2]
[408748003,1774189847741,-522.93,0.00015999,2]